fUSD/lending_fUSD_20260219
["ID","MTS","AMOUNT","RATE_DAILY","PERIOD"]
[405967649,1771471845902,-500.0,0.00013698,2]
[405967650,1771471845912,-500.0,0.00013698,2]
[405967651,1771471845923,-500.0,0.00013698,2]
[405967652,1771471845934,-500.0,0.00013698,2]
[405967653,1771471845945,-500.0,0.00013698,2]
[405967654,1771471845955,-500.0,0.00013698,2]
[405967655,1771471845964,-500.0,0.00013698,2]
[405967656,1771471845975,-500.0,0.00013698,2]
[405967657,1771471845986,-500.0,0.00013698,2]
[405967658,1771471845997,-500.0,0.00013698,2]
[405967659,1771471846006,-500.0,0.00013698,2]
[405967660,1771471846015,-500.0,0.00013698,2]
[405967661,1771471846024,-500.0,0.00013698,2]
[405967662,1771471846034,-212.36587913,0.00013698,2]
[405967663,1771471846043,-500.0,0.00013698,2]
[405967664,1771471846051,-500.0,0.00013698,2]
[405967665,1771471846060,-500.0,0.00013698,2]
[405967666,1771471846069,-500.0,0.00013698,2]
[405967667,1771471846078,-500.0,0.00013698,2]
[405967668,1771471846087,-500.0,0.00013698,2]
[405967669,1771471846260,-500.0,0.00013698,2]
[405967670,1771471846270,-500.0,0.00013698,2]
[405967671,1771471846280,-500.0,0.00013698,2]
[405967672,1771471846289,-500.0,0.00013698,2]
[405967673,1771471846299,-500.0,0.00013698,2]
[405967674,1771471846308,-500.0,0.00013698,2]
[405967675,1771471846317,-500.0,0.00013698,2]
[405967676,1771471846326,-500.0,0.00013698,2]
[405967677,1771471846335,-500.0,0.00013698,2]
[405967678,1771471846343,-500.0,0.00013698,2]
[405967679,1771471846353,-500.0,0.00013698,2]
[405967680,1771471846362,-502.20552122,0.00013698,2]
[405967681,1771471846371,-500.0,0.00013698,2]
[405967682,1771471846380,-500.0,0.00013698,2]
[405967683,1771471846388,-500.0,0.00013698,2]
[405967684,1771471846398,-500.0,0.00013698,2]
[405967685,1771471846407,-500.0,0.00013698,2]
[405967686,1771471846416,-500.0,0.00013698,2]
[405967687,1771471846425,-500.0,0.00013698,2]
[405967688,1771471846435,-500.0,0.00013698,2]
[405967689,1771471846444,-500.0,0.00013698,2]
[405967690,1771471846453,-500.0,0.00013698,2]
[405967691,1771471846463,-500.0,0.00013698,2]
[405967692,1771471846472,-500.0,0.00013698,2]
[405967693,1771471846481,-500.0,0.00013698,2]
[405967694,1771471846494,-500.0,0.00013698,2]
[405967695,1771471846503,-500.0,0.00013698,2]
[405967696,1771471846512,-500.0,0.00013698,2]
[405967697,1771471846523,-500.0,0.00013698,2]
[405967698,1771471846535,-500.0,0.00013698,2]
[405967699,1771471846545,-500.0,0.00013698,2]
[405967700,1771471846554,-500.0,0.00013698,2]
[405967701,1771471846565,-500.0,0.00013698,2]
[405967702,1771471846574,-500.0,0.00013698,2]
[405967703,1771471846584,-500.0,0.00013698,2]
[405967704,1771471846594,-500.0,0.00013698,2]
[405967705,1771471846604,-500.0,0.00013698,2]
[405967706,1771471846614,-500.0,0.00013698,2]
[405967707,1771471846623,-500.0,0.00013698,2]
[405967708,1771471846632,-500.0,0.00013698,2]
[405967709,1771471846641,-500.0,0.00013698,2]
[405967710,1771471846651,-500.0,0.00013698,2]
[405967711,1771471846660,-500.0,0.00013698,2]
[405967712,1771471846669,-500.0,0.00013698,2]
[405967713,1771471846679,-500.0,0.00013698,2]
[405967714,1771471846688,-500.0,0.00013698,2]
[405967715,1771471846697,-500.0,0.00013698,2]
[405967716,1771471846707,-500.0,0.00013698,2]
[405967717,1771471846716,-500.0,0.00013698,2]
[405967718,1771471846726,-500.0,0.00013698,2]
[405967719,1771471846735,-500.0,0.00013698,2]
[405967720,1771471846745,-500.0,0.00013698,2]
[405967721,1771471846754,-500.0,0.00013698,2]
[405967722,1771471846763,-500.0,0.00013698,2]
[405967723,1771471846772,-500.0,0.00013698,2]
[405967724,1771471846783,-500.0,0.00013698,2]
[405967725,1771471846792,-500.0,0.00013698,2]
[405967726,1771471846801,-500.0,0.00013698,2]
[405967727,1771471846811,-500.0,0.00013698,2]
[405967728,1771471846821,-500.0,0.00013698,2]
[405967729,1771471846830,-500.0,0.00013698,2]
[405967730,1771471846839,-500.0,0.00013698,2]
[405967731,1771471846848,-500.0,0.00013698,2]
[405967732,1771471846858,-199.95184886,0.00013698,2]
[405967733,1771471846867,-500.0,0.00013698,2]
[405967734,1771471846876,-500.0,0.00013698,2]
[405967735,1771471846885,-500.0,0.00013698,2]
[405967736,1771471846894,-559.89757707,0.00013698,2]
[405967737,1771471846904,-154.187912,0.00013698,2]
[405967738,1771471846914,-200.0,0.00013699,2]
[405967739,1771471846923,-151.0,0.00013699,2]
[405967740,1771471846933,-151.0,0.00013699,2]
[405967741,1771471846943,-318.096556,0.00013699,2]
[405967742,1771471846953,-318.096556,0.00013699,2]
[405967743,1771471846962,-318.096556,0.00013699,2]
[405967744,1771471846971,-318.096556,0.00013699,2]
[405967745,1771471846981,-318.096556,0.00013699,2]
[405967746,1771471846990,-318.096556,0.00013699,2]
[405967747,1771471846999,-318.096556,0.00013699,2]
[405967748,1771471847009,-318.096556,0.00013699,2]
[405967749,1771471847019,-318.096556,0.00013699,2]
[405967750,1771471847030,-318.096556,0.00013699,2]
[405967751,1771471847039,-318.096556,0.00013699,2]
[405967752,1771471847049,-318.096556,0.00013699,2]
[405967753,1771471847059,-500.0,0.00013699,2]
[405967754,1771471847068,-502.26618351,0.00013699,2]
[405967755,1771471847077,-162.46092801,0.00013699,2]
[405967756,1771471847087,-505.505064,0.00013699,2]
[405967757,1771471847096,-152.0,0.00013699,2]
[405967758,1771471847106,-152.0,0.00013699,2]
[405967759,1771471847115,-152.0,0.00013699,2]
[405967760,1771471847125,-152.0,0.00013699,2]
[405967761,1771471847134,-152.0,0.00013699,2]
[405967762,1771471847144,-152.0,0.00013699,2]
[405967763,1771471847153,-152.0,0.00013699,2]
[405967764,1771471847162,-152.0,0.00013699,2]
[405967765,1771471847171,-152.0,0.00013699,2]
[405967766,1771471847181,-152.0,0.00013699,2]
[405967767,1771471847192,-152.0,0.00013699,2]
[405967768,1771471847201,-152.0,0.00013699,2]
[405967769,1771471847211,-500.0,0.00013699,2]
[405967770,1771471847221,-160.74700191,0.00013699,2]
[405967771,1771471847231,-500.0,0.00013699,2]
[405967772,1771471847240,-163.84269756,0.00013699,2]
[405967773,1771471847249,-500.95146285,0.00013699,2]
[405967774,1771471847258,-500.19719361,0.00013699,2]
[405967775,1771471847267,-500.87628951,0.00013699,2]
[405967776,1771471847276,-163.93641523,0.00013699,2]
[405967777,1771471847288,-500.0,0.00013699,2]
[405967778,1771471847297,-500.86784162,0.00013699,2]
[405967779,1771471847306,-162.01833843,0.00013699,2]
[405967780,1771471847315,-160.99202719,0.00013699,2]
[405967781,1771471847324,-500.0,0.00013699,2]
[405967782,1771471847333,-471.10460984,0.00013699,2]
[405967783,1771471847343,-502.04789139,0.00013699,2]
[405967784,1771471847352,-152.0,0.00013699,2]
[405967785,1771471847362,-152.0,0.00013699,2]
[405967786,1771471847371,-152.0,0.00013699,2]
[405967787,1771471847382,-152.0,0.00013699,2]
[405967788,1771471847392,-152.0,0.00013699,2]
[405967789,1771471847403,-152.0,0.00013699,2]
[405967790,1771471847413,-152.0,0.00013699,2]
[405967791,1771471847423,-152.0,0.00013699,2]
[405967792,1771471847433,-152.0,0.00013699,2]
[405967793,1771471847443,-152.0,0.00013699,2]
[405967794,1771471847452,-152.0,0.00013699,2]
[405967795,1771471847462,-152.0,0.00013699,2]
[405967796,1771471847471,-152.0,0.00013699,2]
[405967797,1771471847480,-161.92373877,0.00013699,2]
[405967798,1771471847491,-500.0,0.00013699,2]
[405967799,1771471847503,-217.15233878,0.00013784,2]
[405967800,1771471847513,-1000.0,0.00013795,2]
[405967801,1771471847522,-1000.0,0.00013799,2]
[405967802,1771471847533,-9347.34855396,0.00013845,2]
[405967803,1771471847544,-4521.89026179,0.00013898,2]
[405967804,1771471847553,-318.096556,0.00013988,2]
[405967805,1771471847563,-318.096556,0.00013988,2]
[405967806,1771471847574,-318.096556,0.00013988,2]
[405967807,1771471847584,-318.096556,0.00013988,2]
[405967808,1771471847593,-1000.0,0.00014161,2]
[405967809,1771471847602,-1000.0,0.00014174,2]
[405967810,1771471847613,-1000.0,0.00014214,2]
[405967811,1771471847623,-1000.0,0.00014247,2]
[405967812,1771471847632,-1000.0,0.00014247,2]
[405967813,1771471847643,-1003.21373635,0.00014247,2]
[405967814,1771471847653,-202.37630499,0.00014247,2]
[405967815,1771471847664,-1000.0,0.00014247,2]
[405967816,1771471847673,-225.18697532,0.00014332,2]
[405967817,1771471847684,-5713.28232864,0.00014413,2]
[405967818,1771471847695,-1000.0,0.00014422,2]
[405967819,1771471847706,-1000.0,0.00014528,2]
[405967820,1771471847715,-1000.0,0.00014576,2]
[405967821,1771471847725,-181.08010149,0.00014603,2]
[405967822,1771471847734,-151.0,0.00014604,3]
[405967823,1771471847744,-1500.0,0.00014795,2]
[405967824,1771471847753,-1500.0,0.00014795,2]
[405967825,1771471847762,-9347.34855396,0.00014859,2]
[405967826,1771471847771,-1000.0,0.00014866,2]
[405967827,1771471847780,-233.51889341,0.0001488,2]
[405967828,1771471847789,-1000.0,0.00014884,2]
[405967829,1771471847798,-4521.89026179,0.00014899,2]
[405967830,1771471847808,-250.0,0.00015,2]
[405967831,1771471847819,-1000.0,0.00015016,2]
[405967832,1771471847829,-215.0,0.00015017,2]
[405967833,1771471847839,-150.0,0.00015017,2]
[405967834,1771471847848,-150.097,0.00015017,2]
[405967835,1771471847858,-150.0,0.00015017,2]
[405967836,1771471847868,-1000.0,0.00015051,2]
[405967837,1771471847878,-900.0,0.00015068,2]
[405967838,1771471847888,-1000.0,0.00015172,2]
[405967839,1771471847901,-1000.0,0.0001521,2]
[405967840,1771471847910,-1000.0,0.00015308,2]
[405967841,1771471847921,-1692.14439322,0.00015342,2]
[405967842,1771471847937,-502.82545137,0.00015342,2]
[405967843,1771471847957,-1000.0,0.00015362,2]
[405967844,1771471847966,-271.57,0.00015388,2]
[405967845,1771471847975,-242.15909246,0.00015428,2]
[405967846,1771471847984,-1000.0,0.0001545,2]
[405967847,1771471847993,-1000.0,0.00015507,2]
[405967848,1771471848002,-1000.0,0.00015517,2]
[405967849,1771471848011,-1000.0,0.0001564,2]
[405967850,1771471848021,-9347.34855396,0.00015872,2]
[405967851,1771471848030,-4521.89026179,0.00015899,2]
[405967852,1771471848039,-187.78006525,0.00015972,2]
[405967853,1771471848048,-775.47832561,0.00015974,2]
[405967854,1771471848058,-621.78829552,0.00015974,2]
[405967855,1771471848067,-251.11897888,0.00015976,2]
[405967856,1771471848077,-156.0,0.00016,2]
[405967857,1771471848086,-507.0,0.0001605,2]
[405967858,1771471848095,-1000.0,0.00016072,2]
[405967859,1771471848104,-1000.0,0.00016118,2]
[405967860,1771471848113,-555.82,0.00016149,2]
[405967861,1771471848122,-500.0,0.00016149,2]
[405967862,1771471848131,-500.0,0.00016149,2]
[405967863,1771471848140,-557.33468587,0.00016149,2]
[405967864,1771471848150,-500.0,0.00016149,2]
[405967865,1771471848162,-6855.84362491,0.0001615,2]
[405967866,1771471848172,-1000.0,0.0001618,2]
[405967867,1771471848183,-5000.00638809,0.000162,5]
[405967868,1771471848194,-1000.0,0.00016229,2]
[405967869,1771471848204,-1275.0,0.00016231,2]
[405967870,1771471848215,-150.0,0.00016231,2]
[405967871,1771471848224,-1209.0,0.00016231,2]
[405967872,1771471848234,-5974.0,0.00016231,2]
[405967873,1771471848244,-2453.0,0.00016231,2]
[405967874,1771471848253,-1000.0,0.00016264,2]
[405967875,1771471848262,-1000.0,0.00016286,2]
[405967876,1771471848271,-960.098049,0.00016332,7]
[405967877,1771471848280,-4845.283761,0.00016332,7]
[405967878,1771471848289,-1000.0,0.00016398,2]
[405967879,1771471848297,-1596.8,0.00016438,2]
[405967880,1771471848306,-900.0,0.00016438,2]
[405967881,1771471848315,-156.0,0.00016438,2]
[405967882,1771471848324,-156.0,0.00016438,2]
[405967883,1771471848334,-156.0,0.00016438,2]
[405967884,1771471848344,-156.0,0.00016438,2]
[405967885,1771471848354,-156.0,0.00016438,2]
[405967886,1771471848363,-296.26328663,0.00016438,2]
[405967887,1771471848372,-156.0,0.00016438,2]
[405967888,1771471848381,-1000.0,0.00016438,2]
[405967889,1771471848390,-266.47082943,0.00016438,2]
[405967890,1771471848399,-156.0,0.00016438,2]
[405967891,1771471848410,-156.0,0.00016438,2]
[405967892,1771471848420,-156.0,0.00016438,2]
[405967893,1771471848430,-192.0,0.00016438,2]
[405967894,1771471848440,-156.0,0.00016438,2]
[405967895,1771471848450,-260.4103811,0.00016524,2]
[405967896,1771471848459,-1000.0,0.00016544,2]
[405967897,1771471848469,-1000.0,0.00016677,2]
[405967898,1771471848479,-813.82639083,0.00016702,2]
[405967899,1771471848490,-1000.0,0.00016712,2]
[405967900,1771471848503,-167.25,0.00016712,2]
[405967901,1771471848512,-162.0,0.0001672,2]
[405967902,1771471848521,-1000.0,0.00016725,2]
[405967903,1771471848530,-1000.0,0.00016811,2]
[405967904,1771471848542,-1000.0,0.0001683,2]
[405967905,1771471848552,-1000.0,0.0001684,2]
[405967906,1771471848561,-1000.0,0.00016843,2]
[405967907,1771471848571,-9347.34855396,0.00016886,2]
[405967908,1771471848580,-4521.89026179,0.000169,2]
[405967909,1771471848589,-989.0,0.000169,2]
[405967910,1771471848599,-309.0,0.000169,2]
[405967911,1771471848608,-200.0,0.000169,2]
[405967912,1771471848616,-303.0,0.000169,2]
[405967913,1771471848626,-1000.0,0.0001694,2]
[405967914,1771471848635,-1000.0,0.00016986,2]
[405967915,1771471848644,-200.0,0.00017,2]
[405967916,1771471848654,-300.0,0.00017,2]
[405967917,1771471848663,-500.0,0.00017,7]
[405967918,1771471848672,-500.0,0.00017,7]
[405967919,1771471848682,-500.0,0.00017,7]
[405967920,1771471848691,-235.28,0.00017,7]
[405967921,1771471848700,-1000.0,0.00017025,2]
[405967922,1771471848709,-270.0455652,0.00017072,2]
[405967923,1771471848718,-507.0,0.00017082,2]
[405967924,1771471848728,-150.0,0.0001709,2]
[405967925,1771471848737,-350.0,0.00017143,2]
[405967926,1771471848745,-150.0,0.00017165,2]
[405967927,1771471848755,-150.0,0.00017213,2]
[405967928,1771471848763,-150.0,0.00017253,2]
[405967929,1771471848773,-1000.0,0.00017255,2]
[405967930,1771471848783,-150.0,0.00017257,2]
[405967931,1771471848791,-1000.0,0.0001726,2]
[405967932,1771471848800,-274.0811231,0.00017294,2]
[405967933,1771471848809,-150.0,0.00017308,2]
[405967934,1771471848818,-155.0,0.00017323,2]
[405967935,1771471848827,-1000.0,0.00017331,2]
[405967936,1771471848835,-150.0,0.0001734,2]
[405967937,1771471848844,-194.72792766,0.00017341,2]
[405967938,1771471848853,-150.0,0.0001739,2]
[405967939,1771471848861,-1596.8,0.00017399,2]
[405967940,1771471848870,-150.0,0.00017403,2]
[405967941,1771471848879,-269.40825519,0.00017404,2]
[405967942,1771471848888,-1000.0,0.00017415,2]
[405967943,1771471848897,-150.0,0.00017417,2]
[405967944,1771471848906,-150.0,0.00017435,2]
[405967945,1771471848915,-150.0,0.0001744,2]
[405967946,1771471848924,-150.0,0.0001744,2]
[405967947,1771471848933,-150.0,0.0001745,2]
[405967948,1771471848942,-350.0,0.00017468,2]
[405967949,1771471848951,-150.0,0.00017472,2]
[405967950,1771471848960,-150.0,0.00017477,2]
[405967951,1771471848969,-378.0,0.00017478,2]
[405967952,1771471848978,-378.0,0.00017479,2]
[405967953,1771471848988,-150.0,0.00017484,2]
[405967954,1771471848996,-378.0,0.00017488,2]
[405967955,1771471849006,-150.0,0.00017496,2]
[405967956,1771471849014,-150.0,0.00017504,2]
[405967957,1771471849023,-150.0,0.00017504,2]
[405967958,1771471849033,-150.0,0.00017509,2]
[405967959,1771471849042,-150.0,0.00017518,2]
[405967960,1771471849055,-150.0,0.00017521,2]
[405967961,1771471849063,-1999.0,0.00017534,2]
[405967962,1771471849072,-1000.0,0.00017538,2]
[405967963,1771471849080,-1000.0,0.00017539,2]
[405967964,1771471849090,-150.0,0.00017545,2]
[405967965,1771471849098,-1000.0,0.0001755,2]
[405967966,1771471849107,-350.0,0.00017558,2]
[405967967,1771471849116,-150.0,0.00017559,2]
[405967968,1771471849126,-1000.0,0.00017564,2]
[405967969,1771471849135,-1000.0,0.0001757,2]
[405967970,1771471849144,-1000.0,0.00017572,2]
[405967971,1771471849152,-150.0,0.00017584,2]
[405967972,1771471849161,-150.0,0.00017597,2]
[405967973,1771471849170,-1000.0,0.00017612,2]
[405967974,1771471849179,-280.03725112,0.0001762,2]
[405967975,1771471849188,-150.0,0.00017625,2]
[405967976,1771471849197,-1000.0,0.00017628,2]
[405967977,1771471849206,-1000.0,0.00017628,2]
[405967978,1771471849215,-150.0,0.00017639,2]
[405967979,1771471849224,-1461.91485088,0.0001764,2]
[405967980,1771471849233,-1000.0,0.00017649,2]
[405967981,1771471849243,-150.0,0.00017649,2]
[405967982,1771471849251,-1000.0,0.00017655,2]
[405967983,1771471849261,-150.0,0.0001767,2]
[405967984,1771471849270,-150.0,0.00017672,2]
[405967985,1771471849279,-1000.0,0.00017676,2]
[405967986,1771471849288,-2876.0,0.0001768,2]
[405967987,1771471849298,-150.0,0.0001768,2]
[405967988,1771471849307,-150.0,0.00017682,2]
[405967989,1771471849316,-1000.0,0.00017684,2]
[405967990,1771471849326,-150.0,0.00017688,2]
[405967991,1771471849336,-1000.0,0.00017696,2]
[405967992,1771471849346,-1000.0,0.000177,2]
[405967993,1771471849355,-1000.0,0.00017707,2]
[405967994,1771471849364,-1000.0,0.00017713,2]
[405967995,1771471849374,-1000.0,0.0001772,2]
[405967996,1771471849385,-1000.0,0.00017724,2]
[405967997,1771471849395,-150.0,0.00017732,2]
[405967998,1771471849405,-150.0,0.00017732,2]
[405967999,1771471849414,-1000.0,0.00017738,2]
[405968000,1771471849423,-398.79876874,0.0001774,2]
[405968001,1771471849432,-1000.0,0.00017741,2]
[405968002,1771471849442,-150.0,0.00017758,2]
[405968003,1771471849452,-1000.0,0.0001776,2]
[405968004,1771471849462,-150.0,0.00017763,2]
[405968005,1771471849471,-150.0,0.00017774,2]
[405968006,1771471849480,-150.0,0.00017782,2]
[405968007,1771471849490,-510.61118288,0.00017807,2]
[405968008,1771471849504,-1000.0,0.00017807,2]
[405968009,1771471849513,-500.0,0.00017808,2]
[405968010,1771471849522,-1000.0,0.00017808,2]
[405968011,1771471849532,-800.0,0.00017808,2]
[405968012,1771471849542,-150.0,0.00017819,2]
[405968013,1771471849552,-1104.70590547,0.0001782,10]
[405968014,1771471849562,-150.0,0.00017821,2]
[405968015,1771471849571,-150.0,0.00017848,2]
[405968016,1771471849581,-500.0,0.00017863,2]
[405968017,1771471849590,-150.0,0.00017881,2]
[405968018,1771471849599,-350.0,0.00017888,2]
[405968019,1771471849608,-5713.28232864,0.00017899,2]
[405968020,1771471849617,-1302.16242693,0.000179,2]
[405968021,1771471849626,-4521.89026179,0.000179,2]
[405968022,1771471849635,-9347.34855396,0.000179,2]
[405968023,1771471849645,-1125.07,0.000179,2]
[405968024,1771471849654,-1290.68950623,0.000179,2]
[405968025,1771471849665,-453.60394412,0.000179,2]
[405968026,1771471849675,-1101.94404583,0.000179,3]
[405968027,1771471849687,-335.50465806,0.000179,2]
[405968028,1771471849696,-500.0,0.00017918,2]
[405968029,1771471849705,-150.0,0.00017947,2]
[405968030,1771471849714,-150.0,0.00017951,2]
[405968031,1771471849724,-400.0,0.0001797,2]
[405968032,1771471849733,-400.0,0.0001797,2]
[405968033,1771471849743,-400.0,0.0001797,2]
[405968034,1771471849901,-400.0,0.0001797,2]
[405968035,1771471849912,-500.0,0.00017971,2]
[405968036,1771471849921,-500.0,0.00017972,2]
[405968037,1771471849930,-4156.0,0.00017973,2]
[405968038,1771471849939,-150.0,0.00017973,2]
[405968039,1771471849948,-813.82639083,0.0001799,2]
[405968040,1771471849958,-813.82639083,0.0001799,2]
[405968041,1771471849966,-150.0,0.00017991,2]
[405968042,1771471849975,-300.0,0.00017998,2]
[405968043,1771471849984,-500.0,0.00017999,2]
[405968044,1771471849993,-500.0,0.00017999,2]
[405968045,1771471850002,-183.71370311,0.00017999,2]
[405968046,1771471850011,-500.0,0.00017999,2]
[405968047,1771471850019,-500.0,0.00017999,2]
[405968048,1771471850029,-500.0,0.00017999,2]
[405968049,1771471850038,-500.0,0.00017999,2]
[405968050,1771471850047,-500.0,0.00017999,2]
[405968051,1771471850056,-541.91630413,0.00017999,2]
[405968052,1771471850065,-100423.05310416,0.00017999,2]
[405968053,1771471850074,-555.82,0.00017999,2]
[405968054,1771471850083,-555.82,0.00017999,2]
[405968055,1771471850092,-555.82,0.00017999,2]
[405968056,1771471850101,-555.82,0.00017999,2]
[405968057,1771471850110,-555.82,0.00017999,2]
[405968058,1771471850119,-555.82,0.00017999,2]
[405968059,1771471850127,-555.88673406,0.00017999,2]
[405968060,1771471850136,-503.0319682,0.00017999,2]
[405968061,1771471850145,-500.0,0.00017999,2]
[405968062,1771471850154,-500.0,0.00017999,2]
[405968063,1771471850163,-500.0,0.00017999,2]
[405968064,1771471850172,-500.0,0.00017999,2]
[405968065,1771471850181,-245.91856167,0.00017999,2]
[405968066,1771471850190,-500.0,0.00017999,2]
[405968067,1771471850199,-500.0,0.00017999,2]
[405968068,1771471850208,-500.0,0.00017999,2]
[405968069,1771471850217,-500.0,0.00017999,2]
[405968070,1771471850226,-506.57014584,0.00017999,2]
[405968071,1771471850235,-300.0,0.00017999,2]
[405968072,1771471850244,-318.096556,0.00017999,2]
[405968073,1771471850253,-318.096556,0.00017999,2]
[405968074,1771471850262,-318.096556,0.00017999,2]
[405968075,1771471850271,-318.096562,0.00017999,2]
[405968076,1771471850281,-296.87024122,0.00017999,2]
[405968077,1771471850290,-300.0,0.00017999,2]
[405968078,1771471850299,-666.0,0.00017999,2]
[405968079,1771471850308,-300.0,0.00017999,2]
[405968080,1771471850317,-300.0,0.00017999,2]
[405968081,1771471850327,-666.0,0.00017999,2]
[405968082,1771471850336,-150.0,0.00017999,2]
[405968083,1771471850345,-470470.21681462,0.00018,2]
[405968084,1771471850590,-1392.79065783,0.00018,2]
[405968085,1771471850602,-588.00932753,0.00018,2]
[405968086,1771471850805,-551.01259219,0.00012686,2]
[405968087,1771471850814,-617.0,0.00013231,2]
[405968088,1771471850823,-617.0,0.00016231,2]
[405968089,1771471850832,-6538.36414051,0.00018,2]
[405968090,1771471850843,-1431.58337023,0.00018,2]
[405968091,1771471850853,-2451.06346435,0.00018,2]
[405968092,1771471850863,-7222.24352672,0.00018,2]
[405968093,1771471850898,-151.0,0.00010496,2]
[405968094,1771471850908,-303.1319342,0.00010496,2]
[405968095,1771471850919,-307486.32963037,0.00018,2]
[405968096,1771471851016,-367.26040529,0.00013235,2]
[405968097,1771471851027,-16.39094893,0.00013235,2]
[405968098,1771471851036,-426.27928247,0.00013698,2]
[405968099,1771471851046,-2627.89630002,0.00018,2]
[405968100,1771471851075,-432.93364697,0.00018,2]
[405968102,1771472141131,-1000.0,8.451e-05,2]
[405968103,1771472141155,-300.0,8.642e-05,2]
[405968104,1771472141176,-1200.0,8.642e-05,2]
[405968105,1771472141197,-300.0,8.642e-05,2]
[405968106,1771472141217,-500.0,8.643e-05,2]
[405968107,1771472141237,-500.0,8.643e-05,2]
[405968108,1771472141256,-500.0,8.643e-05,2]
[405968109,1771472141277,-500.0,8.643e-05,2]
[405968110,1771472141297,-500.0,8.643e-05,2]
[405968111,1771472141317,-1000.0,8.752e-05,2]
[405968112,1771472141338,-2500.0,8.764e-05,2]
[405968113,1771472141358,-1205.0,8.764e-05,2]
[405968115,1771472489184,1297.59034333,8.663e-05,3]
[405968119,1771473031772,-480.0,6.999e-05,2]
[405968120,1771473031783,-520.0,7e-05,2]
[405968121,1771473031827,-2055.43133128,7e-05,2]
[405968122,1771473031840,-1014.1262929,7e-05,2]
[405968123,1771473031854,-23410.44237582,7e-05,2]
[405968124,1771473031863,-252.08348862,7.7e-05,2]
[405968125,1771473031873,-668.769,8.491e-05,2]
[405968126,1771473031883,-184.49253376,8.491e-05,2]
[405968128,1771473031892,-184.49253374,8.527e-05,2]
[405968130,1771473031901,-150.0,8.536e-05,2]
[405968132,1771473031911,-500.0,8.543e-05,2]
[405968134,1771473031921,-150.0,8.562e-05,2]
[405968136,1771473031931,-342.91008557,8.563e-05,2]
[405968138,1771473031940,-562.53980319,8.563e-05,2]
[405968140,1771473031949,-500.0,8.563e-05,2]
[405968142,1771473031959,-500.0,8.563e-05,2]
[405968144,1771473031969,-500.0,8.563e-05,2]
[405968146,1771473031978,-500.0,8.563e-05,2]
[405968148,1771473031987,-500.0,8.563e-05,2]
[405968150,1771473031996,-500.0,8.563e-05,2]
[405968151,1771473032006,-500.0,8.563e-05,2]
[405968153,1771473032015,-500.0,8.563e-05,2]
[405968155,1771473032025,-500.0,8.563e-05,2]
[405968157,1771473032035,-500.0,8.563e-05,2]
[405968159,1771473032045,-500.0,8.563e-05,2]
[405968162,1771473032054,-500.0,8.563e-05,2]
[405968164,1771473032064,-500.0,8.563e-05,2]
[405968166,1771473032073,-500.0,8.563e-05,2]
[405968168,1771473032083,-500.0,8.563e-05,2]
[405968170,1771473032092,-500.0,8.563e-05,2]
[405968171,1771473032101,-500.0,8.563e-05,2]
[405968173,1771473032111,-500.0,8.563e-05,2]
[405968175,1771473032120,-500.0,8.563e-05,2]
[405968177,1771473032130,-500.0,8.563e-05,2]
[405968179,1771473032139,-500.0,8.563e-05,2]